fUST/lending_fUST_20250727
["ID","MTS","AMOUNT","RATE_DAILY","PERIOD"]
[375240121,1753595454596,-460.0,0.00020821,2]
[375240122,1753595454606,-670.56,0.00020821,2]
[375240123,1753595454615,-1567.29,0.00020821,2]
[375240124,1753595454625,-517.79,0.00020821,2]
[375240125,1753595454634,-460.0,0.00020821,2]
[375240126,1753595454643,-460.0,0.00020821,2]
[375240127,1753595454653,-460.0,0.00020821,2]
[375240128,1753595454662,-460.0,0.00020821,2]
[375240129,1753595454673,-460.0,0.00020821,2]
[375240130,1753595454683,-473.26595617,0.00020821,2]
[375240131,1753595454692,-460.0,0.00020821,2]
[375240132,1753595454701,-460.0,0.00020821,2]
[375240133,1753595454711,-460.0,0.00020821,2]
[375240134,1753595454720,-460.0,0.00020821,2]
[375240135,1753595454730,-622.32,0.00020821,2]
[375240136,1753595454740,-792.06,0.00020821,2]
[375240137,1753595454750,-460.0,0.00020821,2]
[375240138,1753595454760,-460.0,0.00020821,2]
[375240139,1753595454770,-460.0,0.00020821,2]
[375240140,1753595454780,-476.52832246,0.00020821,2]
[375240141,1753595454789,-460.0,0.00020821,2]
[375240142,1753595454799,-598.56,0.00020821,2]
[375240143,1753595454814,-1639.17,0.00020821,2]
[375240144,1753595454829,-750.85,0.00020821,2]
[375240145,1753595454839,-486.5,0.00020821,2]
[375240146,1753595454848,-460.0,0.00020821,2]
[375240147,1753595454857,-460.0,0.00020821,2]
[375240148,1753595454867,-504.15,0.00020821,2]
[375240149,1753595454876,-720.09,0.00020821,2]
[375240150,1753595454887,-218.71255318,0.00020821,2]
[375240151,1753595454897,-460.0,0.00020821,2]
[375240152,1753595454907,-460.0,0.00020821,2]
[375240153,1753595454916,-460.0,0.00020821,2]
[375240154,1753595454925,-460.0,0.00020821,2]
[375240155,1753595454935,-505.49423003,0.00020821,2]
[375240156,1753595454945,-460.0,0.00020821,2]
[375240157,1753595454955,-673.38,0.00020821,2]
[375240158,1753595454966,-460.0,0.00020821,2]
[375240159,1753595454976,-160.0,0.0002083,2]
[375240160,1753595454985,-3935.02372882,0.00020934,4]
[375240161,1753595454994,-150.0,0.00020961,2]
[375240162,1753595455003,-3345.06986918,0.00021057,2]
[375240163,1753595455014,-3987.71101575,0.00021095,2]
[375240164,1753595455024,-303.95450952,0.00021095,2]
[375240165,1753595455033,-460.0,0.00021095,2]
[375240166,1753595455042,-460.0,0.00021095,2]
[375240167,1753595455051,-460.0,0.00021095,2]
[375240168,1753595455061,-460.0,0.00021095,2]
[375240169,1753595455070,-460.0,0.00021095,2]
[375240170,1753595455079,-3978.79,0.00021095,2]
[375240171,1753595455090,-460.0,0.00021095,2]
[375240172,1753595455099,-460.0,0.00021095,2]
[375240173,1753595455111,-460.0,0.00021095,2]
[375240174,1753595455120,-460.0,0.00021095,2]
[375240175,1753595455129,-460.0,0.00021095,2]
[375240176,1753595455138,-460.0,0.00021095,2]
[375240177,1753595455148,-460.0,0.00021095,2]
[375240178,1753595455158,-637.82,0.00021095,2]
[375240179,1753595455167,-460.0,0.00021095,2]
[375240180,1753595455177,-646.88,0.00021095,2]
[375240181,1753595455187,-460.0,0.00021095,2]
[375240182,1753595455196,-460.0,0.00021095,2]
[375240183,1753595455206,-466.95373641,0.00021095,2]
[375240184,1753595455215,-1725.54,0.00021095,2]
[375240185,1753595455224,-460.0,0.00021095,2]
[375240186,1753595455234,-460.0,0.00021095,2]
[375240187,1753595455244,-460.0,0.00021095,2]
[375240188,1753595455253,-605.21,0.00021095,2]
[375240189,1753595455263,-460.0,0.00021095,2]
[375240190,1753595455273,-460.0,0.00021095,2]
[375240191,1753595455283,-460.0,0.00021095,2]
[375240192,1753595455292,-591.92,0.00021095,2]
[375240193,1753595455301,-460.0,0.00021095,2]
[375240194,1753595455311,-584.25,0.00021095,2]
[375240195,1753595455320,-460.0,0.00021095,2]
[375240196,1753595455329,-798.5,0.00021095,2]
[375240197,1753595455339,-460.0,0.00021095,2]
[375240198,1753595455348,-460.0,0.00021095,2]
[375240199,1753595455358,-460.0,0.00021095,2]
[375240200,1753595455367,-460.0,0.00021095,2]
[375240201,1753595455376,-4006.34,0.00021095,2]
[375240202,1753595455385,-460.0,0.00021095,2]
[375240203,1753595455395,-460.0,0.00021095,2]
[375240204,1753595455404,-460.0,0.00021095,2]
[375240205,1753595455414,-460.0,0.00021095,2]
[375240206,1753595455423,-460.0,0.00021095,2]
[375240207,1753595455432,-783.4,0.00021095,2]
[375240208,1753595455441,-460.0,0.00021095,2]
[375240209,1753595455451,-460.0,0.00021095,2]
[375240210,1753595455460,-381.64297915,0.00021095,2]
[375240211,1753595455470,-160.14115605,0.00021095,2]
[375240212,1753595455479,-1583.13,0.00021095,2]
[375240213,1753595455488,-460.0,0.00021095,2]
[375240214,1753595455497,-1666.04,0.00021095,2]
[375240215,1753595455507,-1405.32,0.00021095,2]
[375240216,1753595455516,-460.0,0.00021095,2]
[375240217,1753595455525,-460.0,0.00021095,2]
[375240218,1753595455534,-460.0,0.00021095,2]
[375240219,1753595455544,-460.0,0.00021095,2]
[375240220,1753595455553,-460.0,0.00021095,2]
[375240221,1753595455563,-1584.02,0.00021095,2]
[375240222,1753595455572,-460.0,0.00021095,2]
[375240223,1753595455582,-584.73,0.00021095,2]
[375240224,1753595455591,-475.24,0.00021095,2]
[375240225,1753595455601,-1748.75,0.00021095,2]
[375240226,1753595455610,-746.26,0.00021095,2]
[375240227,1753595455620,-819.7,0.00021095,2]
[375240228,1753595455629,-460.0,0.00021095,2]
[375240229,1753595455639,-1990.43,0.00021095,2]
[375240230,1753595455649,-460.0,0.00021095,2]
[375240231,1753595455658,-460.0,0.00021095,2]
[375240232,1753595455668,-460.0,0.00021095,2]
[375240233,1753595455678,-460.0,0.00021095,2]
[375240234,1753595455687,-532.53,0.00021095,2]
[375240235,1753595455697,-460.0,0.00021095,2]
[375240236,1753595455706,-475.65,0.00021095,2]
[375240237,1753595455715,-1414.2,0.00021095,2]
[375240238,1753595455725,-460.0,0.00021095,2]
[375240239,1753595455734,-460.0,0.00021095,2]
[375240240,1753595455744,-1681.9,0.00021095,2]
[375240241,1753595455754,-460.0,0.00021095,2]
[375240242,1753595455763,-1788.4,0.00021095,2]
[375240243,1753595455773,-460.0,0.00021095,2]
[375240244,1753595455783,-670.56,0.00021095,2]
[375240245,1753595455792,-1567.29,0.00021095,2]
[375240246,1753595455801,-517.79,0.00021095,2]
[375240247,1753595455810,-460.0,0.00021095,2]
[375240248,1753595455823,-460.0,0.00021095,2]
[375240249,1753595455833,-460.0,0.00021095,2]
[375240250,1753595455842,-460.0,0.00021095,2]
[375240251,1753595455851,-460.0,0.00021095,2]
[375240252,1753595455863,-460.0,0.00021095,2]
[375240253,1753595455873,-460.0,0.00021095,2]
[375240254,1753595455882,-460.0,0.00021095,2]
[375240255,1753595455892,-460.0,0.00021095,2]
[375240256,1753595455901,-622.32,0.00021095,2]
[375240257,1753595455911,-792.06,0.00021095,2]
[375240258,1753595455921,-596.01132318,0.00021095,2]
[375240259,1753595455930,-196.0970772,0.00021095,2]
[375240260,1753595455939,-460.0,0.00021095,2]
[375240261,1753595455948,-460.0,0.00021095,2]
[375240262,1753595455958,-598.56,0.00021095,2]
[375240263,1753595455967,-1639.17,0.00021095,2]
[375240264,1753595456052,-750.85,0.00021095,2]
[375240265,1753595456073,-486.5,0.00021095,2]
[375240266,1753595456084,-460.0,0.00021095,2]
[375240267,1753595456094,-504.15,0.00021095,2]
[375240268,1753595456104,-720.09,0.00021095,2]
[375240269,1753595456113,-460.0,0.00021095,2]
[375240270,1753595456123,-460.0,0.00021095,2]
[375240271,1753595456132,-460.0,0.00021095,2]
[375240272,1753595456142,-460.0,0.00021095,2]
[375240273,1753595456152,-460.0,0.00021095,2]
[375240274,1753595456162,-460.0,0.00021095,2]
[375240275,1753595456173,-673.38,0.00021095,2]
[375240276,1753595456182,-464.72418399,0.00021095,2]
[375240277,1753595456192,-500.0,0.00021136,2]
[375240278,1753595456201,-3935.02372882,0.00021141,4]
[375240279,1753595456210,-407.732,0.00021151,2]
[375240280,1753595456220,-500.0,0.00021164,2]
[375240281,1753595456230,-151.0,0.000212,4]
[375240282,1753595456239,-3935.02372882,0.00021348,5]
[375240283,1753595456248,-466.62980719,0.00021364,2]
[375240284,1753595456258,-460.0,0.00021369,2]
[375240285,1753595456267,-460.0,0.00021369,2]
[375240286,1753595456278,-460.0,0.00021369,2]
[375240287,1753595456288,-397.3929076,0.00021369,2]
[375240288,1753595456297,-460.0,0.00021369,2]
[375240289,1753595456307,-460.0,0.00021369,2]
[375240290,1753595456316,-3978.79,0.00021369,2]
[375240291,1753595456326,-244.04,0.00021369,2]
[375240292,1753595456336,-460.0,0.00021369,2]
[375240293,1753595456346,-460.0,0.00021369,2]
[375240294,1753595456355,-283.92,0.00021369,2]
[375240295,1753595456365,-460.0,0.00021369,2]
[375240296,1753595456374,-460.0,0.00021369,2]
[375240297,1753595456384,-460.0,0.00021369,2]
[375240298,1753595456394,-637.82,0.00021369,2]
[375240299,1753595456404,-460.0,0.00021369,2]
[375240300,1753595456414,-646.88,0.00021369,2]
[375240301,1753595456423,-460.0,0.00021369,2]
[375240302,1753595456434,-1725.54,0.00021369,2]
[375240303,1753595456443,-460.0,0.00021369,2]
[375240304,1753595456452,-460.0,0.00021369,2]
[375240305,1753595456461,-591.04,0.00021369,2]
[375240306,1753595456471,-460.0,0.00021369,2]
[375240307,1753595456480,-460.0,0.00021369,2]
[375240308,1753595456489,-460.0,0.00021369,2]
[375240309,1753595456500,-460.0,0.00021369,2]
[375240310,1753595456509,-584.25,0.00021369,2]
[375240311,1753595456519,-798.5,0.00021369,2]
[375240312,1753595456529,-460.0,0.00021369,2]
[375240313,1753595456539,-460.0,0.00021369,2]
[375240314,1753595456548,-289.11157121,0.00021369,2]
[375240315,1753595456557,-460.0,0.00021369,2]
[375240316,1753595456567,-4006.34,0.00021369,2]
[375240317,1753595456576,-460.0,0.00021369,2]
[375240318,1753595456586,-460.0,0.00021369,2]
[375240319,1753595456595,-460.0,0.00021369,2]
[375240320,1753595456605,-460.0,0.00021369,2]
[375240321,1753595456614,-783.4,0.00021369,2]
[375240322,1753595456624,-460.0,0.00021369,2]
[375240323,1753595456633,-460.0,0.00021369,2]
[375240324,1753595456643,-1583.13,0.00021369,2]
[375240325,1753595456656,-460.0,0.00021369,2]
[375240326,1753595456666,-1666.04,0.00021369,2]
[375240327,1753595456675,-1405.32,0.00021369,2]
[375240328,1753595456685,-460.0,0.00021369,2]
[375240329,1753595456694,-460.0,0.00021369,2]
[375240330,1753595456704,-460.0,0.00021369,2]
[375240331,1753595456714,-460.0,0.00021369,2]
[375240332,1753595456723,-460.0,0.00021369,2]
[375240333,1753595456733,-1584.02,0.00021369,2]
[375240334,1753595456743,-460.0,0.00021369,2]
[375240335,1753595456752,-584.73,0.00021369,2]
[375240336,1753595456762,-475.24,0.00021369,2]
[375240337,1753595456771,-1748.75,0.00021369,2]
[375240338,1753595456782,-746.26,0.00021369,2]
[375240339,1753595456791,-819.7,0.00021369,2]
[375240340,1753595456802,-460.0,0.00021369,2]
[375240341,1753595456811,-1990.43,0.00021369,2]
[375240342,1753595456824,-460.0,0.00021369,2]
[375240343,1753595456835,-460.0,0.00021369,2]
[375240344,1753595456845,-460.0,0.00021369,2]
[375240345,1753595456857,-532.53,0.00021369,2]
[375240346,1753595456866,-559.43712587,0.00021369,2]
[375240347,1753595456876,-475.65,0.00021369,2]
[375240348,1753595456886,-1414.2,0.00021369,2]
[375240349,1753595456897,-460.0,0.00021369,2]
[375240350,1753595456906,-1681.9,0.00021369,2]
[375240351,1753595456916,-460.0,0.00021369,2]
[375240352,1753595456924,-460.0,0.00021369,2]
[375240353,1753595456934,-1788.4,0.00021369,2]
[375240354,1753595456943,-670.56,0.00021369,2]
[375240355,1753595456953,-1567.29,0.00021369,2]
[375240356,1753595456963,-517.79,0.00021369,2]
[375240357,1753595456972,-386.11777741,0.00021369,2]
[375240358,1753595456982,-460.0,0.00021369,2]
[375240359,1753595456991,-460.0,0.00021369,2]
[375240360,1753595457002,-460.0,0.00021369,2]
[375240361,1753595457011,-460.0,0.00021369,2]
[375240362,1753595457021,-460.0,0.00021369,2]
[375240363,1753595457030,-460.0,0.00021369,2]
[375240364,1753595457040,-460.0,0.00021369,2]
[375240365,1753595457049,-460.0,0.00021369,2]
[375240366,1753595457058,-622.32,0.00021369,2]
[375240367,1753595457068,-792.06,0.00021369,2]
[375240368,1753595457077,-460.0,0.00021369,2]
[375240369,1753595457087,-460.0,0.00021369,2]
[375240370,1753595457096,-598.56,0.00021369,2]
[375240371,1753595457105,-1639.17,0.00021369,2]
[375240372,1753595457115,-750.85,0.00021369,2]
[375240373,1753595457124,-486.5,0.00021369,2]
[375240374,1753595457133,-460.0,0.00021369,2]
[375240375,1753595457143,-504.15,0.00021369,2]
[375240376,1753595457154,-720.09,0.00021369,2]
[375240377,1753595457163,-460.0,0.00021369,2]
[375240378,1753595457173,-460.0,0.00021369,2]
[375240379,1753595457182,-460.0,0.00021369,2]
[375240380,1753595457192,-460.0,0.00021369,2]
[375240381,1753595457202,-460.0,0.00021369,2]
[375240382,1753595457212,-460.0,0.00021369,2]
[375240383,1753595457221,-673.38,0.00021369,2]
[375240384,1753595457231,-260.0,0.00021378,2]
[375240385,1753595457240,-3935.02372882,0.00021555,5]
[375240386,1753595457250,-151.0,0.000216,4]
[375240387,1753595457259,-460.0,0.00021643,2]
[375240388,1753595457269,-460.0,0.00021643,2]
[375240389,1753595457278,-460.0,0.00021643,2]
[375240390,1753595457287,-460.0,0.00021643,2]
[375240391,1753595457297,-460.0,0.00021643,2]
[375240392,1753595457307,-3978.79,0.00021643,2]
[375240393,1753595457316,-460.0,0.00021643,2]
[375240394,1753595457325,-460.0,0.00021643,2]
[375240395,1753595457335,-298.46705031,0.00021643,2]
[375240396,1753595457344,-460.0,0.00021643,2]
[375240397,1753595457353,-637.82,0.00021643,2]
[375240398,1753595457362,-460.0,0.00021643,2]
[375240399,1753595457372,-646.88,0.00021643,2]
[375240400,1753595457382,-460.0,0.00021643,2]
[375240401,1753595457391,-1725.54,0.00021643,2]
[375240402,1753595457401,-460.0,0.00021643,2]
[375240403,1753595457410,-537.65,0.00021643,2]
[375240404,1753595457419,-460.0,0.00021643,2]
[375240405,1753595457428,-460.0,0.00021643,2]
[375240406,1753595457437,-483.29,0.00021643,2]
[375240407,1753595457447,-584.25,0.00021643,2]
[375240408,1753595457456,-798.5,0.00021643,2]
[375240409,1753595457465,-460.0,0.00021643,2]
[375240410,1753595457474,-460.0,0.00021643,2]
[375240411,1753595457483,-4006.34,0.00021643,2]
[375240412,1753595457493,-460.0,0.00021643,2]
[375240413,1753595457502,-535.45,0.00021643,2]
[375240414,1753595457511,-460.0,0.00021643,2]
[375240415,1753595457520,-783.4,0.00021643,2]
[375240416,1753595457529,-460.0,0.00021643,2]
[375240417,1753595457539,-460.0,0.00021643,2]
[375240418,1753595457548,-1583.13,0.00021643,2]
[375240419,1753595457557,-460.0,0.00021643,2]
[375240420,1753595457566,-1666.04,0.00021643,2]
[375240421,1753595457576,-1405.32,0.00021643,2]
[375240422,1753595457585,-460.0,0.00021643,2]
[375240423,1753595457595,-460.0,0.00021643,2]
[375240424,1753595457604,-460.0,0.00021643,2]
[375240425,1753595457613,-460.0,0.00021643,2]
[375240426,1753595457622,-460.0,0.00021643,2]
[375240427,1753595457632,-1584.02,0.00021643,2]
[375240428,1753595457642,-460.0,0.00021643,2]
[375240429,1753595457651,-584.73,0.00021643,2]
[375240430,1753595457661,-475.24,0.00021643,2]
[375240431,1753595457670,-1748.75,0.00021643,2]
[375240432,1753595457679,-746.26,0.00021643,2]
[375240433,1753595457689,-819.7,0.00021643,2]
[375240434,1753595457698,-460.0,0.00021643,2]
[375240435,1753595457708,-1990.43,0.00021643,2]
[375240436,1753595457717,-460.0,0.00021643,2]
[375240437,1753595457726,-460.0,0.00021643,2]
[375240438,1753595457735,-532.53,0.00021643,2]
[375240439,1753595457744,-475.65,0.00021643,2]
[375240440,1753595457754,-1414.2,0.00021643,2]
[375240441,1753595457764,-460.0,0.00021643,2]
[375240442,1753595457773,-1681.9,0.00021643,2]
[375240443,1753595457783,-460.0,0.00021643,2]
[375240444,1753595457792,-460.0,0.00021643,2]
[375240445,1753595457801,-1788.4,0.00021643,2]
[375240446,1753595457810,-670.56,0.00021643,2]
[375240447,1753595457822,-1567.29,0.00021643,2]
[375240448,1753595457831,-517.79,0.00021643,2]
[375240449,1753595457841,-460.0,0.00021643,2]
[375240450,1753595457850,-460.0,0.00021643,2]
[375240451,1753595457859,-460.0,0.00021643,2]
[375240452,1753595457868,-460.0,0.00021643,2]
[375240453,1753595457877,-460.0,0.00021643,2]
[375240454,1753595457887,-460.0,0.00021643,2]
[375240455,1753595457898,-460.0,0.00021643,2]
[375240456,1753595457908,-460.0,0.00021643,2]
[375240457,1753595457917,-622.32,0.00021643,2]
[375240458,1753595457926,-792.06,0.00021643,2]
[375240459,1753595458040,-460.0,0.00021643,2]
[375240460,1753595458050,-460.0,0.00021643,2]
[375240461,1753595458059,-598.56,0.00021643,2]
[375240462,1753595458068,-1639.17,0.00021643,2]
[375240463,1753595458078,-750.85,0.00021643,2]
[375240464,1753595458088,-486.5,0.00021643,2]
[375240465,1753595458098,-460.0,0.00021643,2]
[375240466,1753595458107,-504.15,0.00021643,2]
[375240467,1753595458116,-720.09,0.00021643,2]
[375240468,1753595458125,-460.0,0.00021643,2]
[375240469,1753595458134,-460.0,0.00021643,2]
[375240470,1753595458144,-460.0,0.00021643,2]
[375240471,1753595458155,-460.0,0.00021643,2]
[375240472,1753595458165,-460.0,0.00021643,2]
[375240473,1753595458174,-673.38,0.00021643,2]
[375240474,1753595458184,-460.0,0.00021643,2]
[375240475,1753595458193,-862.34,0.000217,2]
[375240476,1753595458202,-3935.02372882,0.00021762,5]
[375240477,1753595458212,-150.0,0.00021769,2]
[375240478,1753595458221,-2276.0,0.00021848,2]
[375240479,1753595458231,-460.0,0.00021917,2]
[375240480,1753595458240,-460.0,0.00021917,2]
[375240481,1753595458250,-460.0,0.00021917,2]
[375240482,1753595458259,-460.0,0.00021917,2]
[375240483,1753595458269,-460.0,0.00021917,2]
[375240484,1753595458279,-3978.79,0.00021917,2]
[375240485,1753595458288,-460.0,0.00021917,2]
[375240486,1753595458297,-387.39,0.00021917,2]
[375240487,1753595458306,-637.82,0.00021917,2]
[375240488,1753595458315,-460.0,0.00021917,2]
[375240489,1753595458325,-646.88,0.00021917,2]
[375240490,1753595458335,-1725.54,0.00021917,2]
[375240491,1753595458344,-460.0,0.00021917,2]
[375240492,1753595458354,-460.0,0.00021917,2]
[375240493,1753595458363,-460.0,0.00021917,2]
[375240494,1753595458373,-584.25,0.00021917,2]
[375240495,1753595458383,-798.5,0.00021917,2]
[375240496,1753595458393,-460.0,0.00021917,2]
[375240497,1753595458405,-460.0,0.00021917,2]
[375240498,1753595458415,-4006.34,0.00021917,2]
[375240499,1753595458425,-460.0,0.00021917,2]
[375240500,1753595458435,-460.0,0.00021917,2]
[375240501,1753595458445,-783.4,0.00021917,2]
[375240502,1753595458455,-460.0,0.00021917,2]
[375240503,1753595458465,-460.0,0.00021917,2]
[375240504,1753595458474,-1583.13,0.00021917,2]
[375240505,1753595458483,-460.0,0.00021917,2]
[375240506,1753595458493,-1666.04,0.00021917,2]
[375240507,1753595458502,-1405.32,0.00021917,2]
[375240508,1753595458512,-460.0,0.00021917,2]
[375240509,1753595458521,-460.0,0.00021917,2]
[375240510,1753595458530,-460.0,0.00021917,2]
[375240511,1753595458540,-460.0,0.00021917,2]
[375240512,1753595458549,-460.0,0.00021917,2]
[375240513,1753595458558,-1584.02,0.00021917,2]
[375240514,1753595458568,-460.0,0.00021917,2]
[375240515,1753595458579,-584.73,0.00021917,2]
[375240516,1753595458590,-475.24,0.00021917,2]
[375240517,1753595458599,-1748.75,0.00021917,2]
[375240518,1753595458610,-746.26,0.00021917,2]
[375240519,1753595458620,-819.7,0.00021917,2]
[375240520,1753595458629,-460.0,0.00021917,2]
[375240521,1753595458640,-1990.43,0.00021917,2]
[375240522,1753595458652,-251.97835794,0.00021917,2]
[375240523,1753595458661,-460.0,0.00021917,2]
[375240524,1753595458671,-532.53,0.00021917,2]
[375240525,1753595458681,-475.65,0.00021917,2]
[375240526,1753595458690,-1414.2,0.00021917,2]
[375240527,1753595458699,-460.0,0.00021917,2]
[375240528,1753595458709,-1681.9,0.00021917,2]
[375240529,1753595458719,-460.0,0.00021917,2]
[375240530,1753595458728,-460.0,0.00021917,2]
[375240531,1753595458737,-1788.4,0.00021917,2]
[375240532,1753595458747,-670.56,0.00021917,2]
[375240533,1753595458756,-1567.29,0.00021917,2]
[375240534,1753595458766,-517.79,0.00021917,2]
[375240535,1753595458775,-460.0,0.00021917,2]
[375240536,1753595458784,-460.0,0.00021917,2]
[375240537,1753595458795,-460.0,0.00021917,2]
[375240538,1753595458806,-460.0,0.00021917,2]
[375240539,1753595458815,-460.92,0.00021917,2]
[375240540,1753595458830,-460.0,0.00021917,2]
[375240541,1753595458841,-460.0,0.00021917,2]
[375240542,1753595458851,-460.0,0.00021917,2]
[375240543,1753595458860,-622.32,0.00021917,2]
[375240544,1753595458869,-792.06,0.00021917,2]
[375240545,1753595458878,-460.0,0.00021917,2]
[375240546,1753595458887,-460.0,0.00021917,2]
[375240547,1753595458897,-598.56,0.00021917,2]
[375240548,1753595458908,-1639.17,0.00021917,2]
[375240549,1753595458917,-750.85,0.00021917,2]
[375240550,1753595458926,-486.5,0.00021917,2]
[375240551,1753595458935,-460.0,0.00021917,2]
[375240552,1753595458945,-504.15,0.00021917,2]
[375240553,1753595458954,-720.09,0.00021917,2]
[375240554,1753595458963,-460.0,0.00021917,2]
[375240555,1753595458973,-460.0,0.00021917,2]
[375240556,1753595458982,-460.0,0.00021917,2]
[375240557,1753595458991,-151.0,0.00021917,2]
[375240558,1753595459001,-460.0,0.00021917,2]
[375240559,1753595459010,-460.0,0.00021917,2]
[375240560,1753595459021,-673.38,0.00021917,2]
[375240561,1753595459031,-460.0,0.00021917,2]
[375240562,1753595459040,-500.0,0.00021923,2]
[375240563,1753595459050,-360.0,0.00021926,2]
[375240564,1753595459059,-3935.02372882,0.00021969,6]
[375240565,1753595459069,-1825.24,0.00022,7]
[375240566,1753595459078,-610.86,0.00022,7]
[375240567,1753595459088,-3343.63,0.00022,7]
[375240568,1753595459097,-16983.71,0.00022,2]
[375240569,1753595459107,-151.0,0.000221,7]
[375240570,1753595459118,-255.0,0.00022159,2]
[375240571,1753595459128,-214.23030373,0.00022159,2]
[375240572,1753595459137,-3935.02372882,0.00022176,6]
[375240573,1753595459148,-460.0,0.00022191,2]
[375240574,1753595459158,-277.69514693,0.00022191,2]
[375240575,1753595459168,-460.0,0.00022191,2]
[375240576,1753595459178,-460.0,0.00022191,2]
[375240577,1753595459187,-3978.79,0.00022191,2]
[375240578,1753595459197,-460.0,0.00022191,2]
[375240579,1753595459207,-637.82,0.00022191,2]
[375240580,1753595459216,-460.0,0.00022191,2]
[375240581,1753595459225,-646.88,0.00022191,2]
[375240582,1753595459235,-1725.54,0.00022191,2]
[375240583,1753595459245,-460.0,0.00022191,2]
[375240584,1753595459255,-460.0,0.00022191,2]
[375240585,1753595459264,-584.25,0.00022191,2]
[375240586,1753595459273,-798.5,0.00022191,2]
[375240587,1753595459282,-460.0,0.00022191,2]
[375240588,1753595459291,-4006.34,0.00022191,2]
[375240589,1753595459301,-460.0,0.00022191,2]
[375240590,1753595459310,-460.0,0.00022191,2]
[375240591,1753595459319,-783.4,0.00022191,2]
[375240592,1753595459328,-460.0,0.00022191,2]
[375240593,1753595459338,-460.0,0.00022191,2]
[375240594,1753595459348,-1583.13,0.00022191,2]
[375240595,1753595459358,-460.0,0.00022191,2]
[375240596,1753595459367,-1666.04,0.00022191,2]
[375240597,1753595459377,-1405.32,0.00022191,2]
[375240598,1753595459386,-460.0,0.00022191,2]
[375240599,1753595459396,-460.0,0.00022191,2]
[375240600,1753595459406,-460.0,0.00022191,2]
[375240601,1753595459416,-460.0,0.00022191,2]
[375240602,1753595459425,-1584.02,0.00022191,2]
[375240603,1753595459434,-251.64328735,0.00022191,2]
[375240604,1753595459444,-584.73,0.00022191,2]
[375240605,1753595459454,-1748.75,0.00022191,2]
[375240606,1753595459463,-746.26,0.00022191,2]
[375240607,1753595459472,-475.24,0.00022191,2]
[375240608,1753595459481,-819.7,0.00022191,2]
[375240609,1753595459491,-460.0,0.00022191,2]
[375240610,1753595459500,-1990.43,0.00022191,2]
[375240611,1753595459510,-532.53,0.00022191,2]
[375240612,1753595459521,-475.65,0.00022191,2]
[375240613,1753595459530,-1414.2,0.00022191,2]
[375240614,1753595459539,-460.0,0.00022191,2]
[375240615,1753595459549,-1681.9,0.00022191,2]
[375240616,1753595459558,-460.0,0.00022191,2]
[375240617,1753595459567,-460.0,0.00022191,2]
[375240618,1753595459578,-1788.4,0.00022191,2]
[375240619,1753595459587,-670.56,0.00022191,2]
[375240620,1753595459597,-151.0,0.00022191,7]